bitfinex/quotes_BTCUSD_20251110
["timestamp","ask_amount","ask_price","bid_price","bid_amount"]
[1762737433967,0.0004,106360.0,106350.0,2.72831887]
[1762737434210,0.01795169,106360.0,106350.0,2.25129966]
[1762737434398,0.0004,106360.0,106350.0,3.03632668]
[1762737434617,0.0004,106360.0,106350.0,3.05632668]
[1762737434819,0.0004,106360.0,106350.0,3.00673185]
[1762737434945,0.00046992,106400.0,106390.0,0.51098759]
[1762737435148,0.68080497,106400.0,106370.0,0.3974064]
[1762737435348,0.23763759,106390.0,106380.0,0.323]
[1762737435572,0.23763759,106390.0,106380.0,0.35121003]
[1762737435573,0.31866759,106390.0,106380.0,0.35121003]
[1762737435984,0.13068,106390.0,106380.0,0.35121003]
[1762737436199,0.31866759,106390.0,106380.0,0.35121003]
[1762737436918,0.32266759,106390.0,106380.0,0.35121003]
[1762737437564,0.18800526,106380.0,106370.0,0.51102241]
[1762737437788,0.36231983,106390.0,106370.0,0.51102241]
[1762737438029,0.36231983,106390.0,106380.0,0.18800526]
[1762737438229,0.32566759,106390.0,106370.0,0.51102241]
[1762737438342,0.32014591,106380.0,106370.0,0.53923513]
[1762737438549,0.29664526,106380.0,106370.0,0.53923513]
[1762737438801,0.29864526,106380.0,106370.0,0.53923513]
[1762737439001,0.29664526,106380.0,106370.0,0.3512122]
[1762737439361,0.10864,106380.0,106370.0,0.53923513]
[1762737439585,0.05020154,106380.0,106370.0,0.53923513]
[1762737440203,0.3192368,106380.0,106370.0,0.53923513]
[1762737440401,0.29664526,106380.0,106370.0,0.53923513]
[1762737440622,0.29664526,106380.0,106370.0,0.0282122]
[1762737440623,0.34535554,106380.0,106370.0,0.0282122]
[1762737440820,0.18804061,106360.0,106350.0,0.21805137]
[1762737441061,0.23936568,106360.0,106350.0,0.56075846]
[1762737441237,0.29689061,106360.0,106350.0,0.56075846]
[1762737441441,0.29689061,106360.0,106350.0,0.58897331]
[1762737441641,0.29689061,106360.0,106350.0,0.91197331]
[1762737442051,0.29689061,106360.0,106350.0,0.91597331]
[1762737442392,0.2296787,106370.0,106360.0,0.51104061]
[1762737442700,0.04117,106370.0,106360.0,0.51104061]
[1762737443129,0.08149996,106390.0,106380.0,0.18800526]
[1762737443334,0.26916229,106390.0,106370.0,0.18802293]
[1762737443503,0.26963225,106390.0,106380.0,0.18800526]
[1762737443736,0.28670501,106390.0,106380.0,0.18800526]
[1762737443941,0.33635501,106390.0,106380.0,0.02821008]
[1762737444211,0.38219789,106390.0,106380.0,0.02821008]
[1762737444613,0.38172793,106390.0,106380.0,0.02821008]
[1762737444789,0.36465517,106390.0,106380.0,0.02821008]
[1762737444990,0.36665517,106390.0,106380.0,0.02821008]
[1762737445193,0.36465517,106390.0,106380.0,0.02821008]
[1762737445597,0.78817138,106390.0,106380.0,0.02821008]
[1762737445781,0.18802293,106370.0,106360.0,0.51103289]
[1762737445987,0.28030579,106370.0,106360.0,0.47851042]
[1762737446207,0.18804061,106360.0,106350.0,0.56241257]
[1762737446615,0.23746061,106360.0,106350.0,0.68795137]
[1762737446860,0.31849061,106360.0,106350.0,0.523]
[1762737447027,0.3623459,106360.0,106350.0,0.2]
[1762737447229,0.3623459,106360.0,106350.0,0.22821666]
[1762737447230,0.34631061,106360.0,106350.0,0.22821666]
[1762737447563,0.34631061,106360.0,106350.0,0.35121666]
[1762737447702,0.36385466,106360.0,106350.0,0.54027495]
[1762737447889,0.36385466,106360.0,106350.0,0.35121666]
[1762737448089,0.36485466,106360.0,106350.0,0.53927495]
[1762737448318,0.36685466,106360.0,106350.0,0.53927495]
[1762737448725,0.17881405,106360.0,106350.0,0.53927495]
[1762737449143,0.09778405,106360.0,106350.0,0.53927495]
[1762737449350,0.09778405,106360.0,106350.0,0.56991495]
[1762737449550,0.08024,106360.0,106350.0,0.63608016]
[1762737450125,0.03082,106360.0,106350.0,0.56991495]
[1762737450332,0.03082,106360.0,106350.0,0.71950992]
[1762737450641,0.03082,106360.0,106350.0,0.65304945]
[1762737451045,0.02782,106360.0,106350.0,0.65304945]
[1762737451452,0.02782,106360.0,106350.0,0.57291495]
[1762737451653,0.02782,106360.0,106350.0,0.57191495]
[1762737451820,0.02782,106360.0,106350.0,0.56991495]
[1762737452026,0.02782,106360.0,106350.0,0.78321378]
[1762737452430,0.26496387,106390.0,106370.0,0.18802293]
[1762737452669,0.23859509,106390.0,106380.0,0.0829143]
[1762737452906,0.28624513,106390.0,106380.0,0.02487649]
[1762737453030,0.28671509,106390.0,106380.0,0.02487649]
[1762737453375,0.36307509,106390.0,106380.0,0.02487649]
[1762737453553,0.7805913,106390.0,106380.0,0.02487649]
[1762737453754,0.78306126,106390.0,106380.0,0.02487649]
[1762737453962,0.7845913,106390.0,106380.0,0.02487649]
[1762737454160,0.22418754,106380.0,106370.0,0.05804221]
[1762737454367,0.88390132,106380.0,106370.0,0.02487649]
[1762737454749,0.22420521,106370.0,106360.0,0.05804221]
[1762737454952,0.22422289,106360.0,106340.0,0.05804221]
[1762737455161,0.29679557,106350.0,106340.0,0.38104221]
[1762737455358,0.34964829,106350.0,106340.0,0.40926306]
[1762737455563,0.34964829,106350.0,106340.0,0.37609734]
[1762737455978,0.34964829,106350.0,106340.0,0.40926306]
[1762737456819,0.34964829,106350.0,106340.0,0.59733904]
[1762737457038,0.34964829,106350.0,106340.0,0.5993283]
[1762737457209,0.34964829,106350.0,106340.0,0.60233121]
[1762737457843,0.16159,106350.0,106340.0,0.60233121]
[1762737458015,0.16159,106350.0,106340.0,0.62721113]
[1762737458324,0.08523,106350.0,106340.0,0.59404541]
[1762737458742,0.0768301,106360.0,106350.0,0.18805829]
[1762737458906,0.31136412,106370.0,106360.0,0.18804061]
[1762737459226,0.18032495,106370.0,106360.0,0.24603928]
[1762737459430,0.16159,106370.0,106360.0,0.59389793]
[1762737459581,0.34961293,106370.0,106360.0,0.59389793]
[1762737459981,0.35061293,106370.0,106360.0,0.59389793]
[1762737460188,0.08623,106370.0,106360.0,0.560755]
[1762737460465,0.85231011,106370.0,106360.0,0.05804671]
[1762737460668,0.22422289,106360.0,106350.0,0.02487716]
[1762737460875,0.18805829,106350.0,106340.0,0.08626756]
[1762737460985,0.18805829,106350.0,106340.0,0.05309801]
[1762737460986,0.37313557,106350.0,106340.0,0.05309801]
[1762737461192,0.35009843,106350.0,106340.0,0.37609801]
[1762737461393,0.34962829,106350.0,106340.0,0.37609801]
[1762737462185,0.34962829,106350.0,106340.0,0.43410479]
[1762737462400,0.34962829,106350.0,106340.0,0.4092947]
[1762737462659,0.18805829,106350.0,106340.0,0.3843904]
[1762737462881,0.00047005,106370.0,106360.0,0.51104061]
[1762737463085,0.22558557,106380.0,106370.0,0.323]
[1762737463296,0.30162023,106380.0,106370.0,0.38106727]
[1762737463514,0.34974023,106380.0,106370.0,0.38106727]
[1762737463718,0.16173467,106380.0,106370.0,0.5359089]
[1762737463891,0.37324058,106380.0,106370.0,0.38106727]
[1762737464116,0.34973993,106380.0,106370.0,0.38106727]
[1762737464322,0.34973993,106380.0,106370.0,0.5690902]
[1762737464525,0.16173467,106380.0,106370.0,0.5690902]
[1762737464797,0.00014467,106380.0,106370.0,0.59391862]
[1762737464998,0.00014467,106380.0,106370.0,0.64589862]
[1762737465300,0.00114467,106380.0,106370.0,0.64589862]
[1762737465661,0.18814993,106380.0,106370.0,0.35616751]
[1762737465894,0.35992565,106380.0,106370.0,0.38104892]
[1762737466091,0.83911997,106380.0,106370.0,0.323]
[1762737466532,0.39610793,106380.0,106370.0,0.34788141]
[1762737466742,0.39610793,106380.0,106370.0,0.56907185]
[1762737466918,0.43321793,106380.0,106370.0,0.56907185]
[1762737467120,0.38592221,106380.0,106370.0,0.56907185]
[1762737467320,0.22525993,106380.0,106370.0,0.54419044]
[1762737467691,0.27337993,106380.0,106370.0,0.56906741]
[1762737468292,0.34387993,106380.0,106370.0,0.38104448]
[1762737468747,0.39711384,106380.0,106370.0,0.38104448]
[1762737470093,0.39711384,106380.0,106370.0,0.34787697]
[1762737471164,0.34387993,106380.0,106370.0,0.34787697]
[1762737471426,0.34387993,106380.0,106370.0,0.56906741]
[1762737471735,0.15587467,106380.0,106370.0,0.59390483]
[1762737471959,0.34387993,106380.0,106370.0,0.59390483]
[1762737472160,0.03725467,106380.0,106370.0,0.59390483]
[1762737473206,0.03725467,106380.0,106370.0,0.64460483]
[1762737473396,0.03725467,106380.0,106370.0,0.61143732]
[1762737473718,0.03725467,106380.0,106370.0,0.61148597]
[1762737473923,0.00014467,106380.0,106370.0,0.61148597]
[1762737474084,0.00014467,106380.0,106370.0,1.14352682]
[1762737474630,0.00014467,106380.0,106370.0,0.77735437]
[1762737474956,0.00014467,106380.0,106370.0,1.50223826]
[1762737475308,0.00014467,106380.0,106370.0,1.50073704]
[1762737475505,0.00014467,106380.0,106370.0,1.44935704]
[1762737475743,0.00014467,106380.0,106370.0,1.42935704]
[1762737476423,0.00014467,106380.0,106370.0,0.79685315]
[1762737476600,0.04728467,106380.0,106370.0,0.79485315]
[1762737476788,0.30578993,106380.0,106370.0,0.52852171]
[1762737476998,0.35895584,106380.0,106370.0,0.37375465]
[1762737477555,0.37647462,106380.0,106370.0,0.40695468]
[1762737477687,0.37647462,106380.0,106370.0,0.59497761]
[1762737477891,0.37647462,106380.0,106370.0,0.40695468]
[1762737478109,0.37647462,106380.0,106370.0,0.37275465]
[1762737478327,0.37647462,106380.0,106370.0,0.37475465]
[1762737478544,0.37647462,106380.0,106370.0,0.37775465]
[1762737479762,0.47386505,106380.0,106370.0,0.36127943]
[1762737479948,0.85566894,106380.0,106370.0,0.03827943]
[1762737480114,0.85613895,106380.0,106370.0,0.005]
[1762737480943,0.85613895,106380.0,106370.0,0.002]
[1762737481154,0.22420521,106370.0,106360.0,0.03327943]
[1762737481365,0.46084577,106370.0,106360.0,0.03327943]
[1762737481566,0.36274404,106370.0,106360.0,0.22132004]
[1762737481733,0.36227399,106370.0,106360.0,0.23779526]
[1762737481929,0.17425106,106370.0,106360.0,0.23779526]
[1762737482562,0.01751878,106370.0,106360.0,0.28720526]
[1762737482748,0.01751878,106370.0,106360.0,0.56245061]
[1762737482942,0.01751878,106370.0,106360.0,0.69790205]
[1762737483146,0.01751878,106370.0,106360.0,0.71790205]
[1762737483770,0.01751878,106370.0,106360.0,0.69790205]
[1762737483970,0.01751878,106370.0,106360.0,0.71790205]
[1762737484212,0.32609171,106370.0,106360.0,0.38933144]
[1762737484497,0.37991321,106370.0,106360.0,0.37795078]
[1762737484864,0.41609549,106370.0,106360.0,0.37795078]
[1762737485265,0.79789938,106370.0,106360.0,0.08826498]
[1762737485463,0.79836943,106370.0,106360.0,0.08826498]
[1762737485715,0.41656554,106370.0,106360.0,0.0383142]
[1762737486494,0.79836943,106370.0,106360.0,0.0383142]
[1762737487086,0.22422289,106360.0,106350.0,0.08326498]
[1762737487296,0.90340544,106360.0,106350.0,0.08326498]
[1762737487535,0.90387554,106360.0,106350.0,0.08326498]
[1762737488179,0.90387554,106360.0,106350.0,0.08426498]
[1762737488436,0.90387554,106360.0,106350.0,0.0343142]
[1762737488637,0.90387554,106360.0,106350.0,0.0353142]
[1762737488638,0.90340544,106360.0,106350.0,0.0353142]
[1762737488842,1.29520932,106360.0,106350.0,0.0353142]
[1762737489041,1.29520932,106360.0,106350.0,0.002]
[1762737489461,1.30567941,106360.0,106350.0,0.002]
[1762737489894,1.30567941,106360.0,106340.0,0.0333142]
[1762737489895,0.00999999,106340.0,106330.0,0.04995078]
[1762737490125,0.74467056,106340.0,106330.0,0.04995078]
[1762737490262,0.79355107,106340.0,106330.0,0.04995078]
[1762737490459,0.83020353,106340.0,106320.0,0.04995078]
[1762737490641,0.72717756,106330.0,106320.0,0.04995078]
[1762737491063,0.72717756,106330.0,106320.0,0.05009545]
[1762737491267,0.82574952,106330.0,106320.0,0.05009545]
[1762737491717,0.82527929,106330.0,106320.0,0.05109545]
[1762737491894,0.82527929,106330.0,106320.0,0.05009545]
[1762737492106,0.82527929,106330.0,106320.0,0.05109545]
[1762737492107,0.8619318,106330.0,106320.0,0.05109545]
[1762737493288,0.38202618,106330.0,106320.0,0.23920681]
[1762737493506,0.15728,106330.0,106320.0,0.23920681]
[1762737494294,0.36672293,106330.0,106320.0,0.06747611]
[1762737494493,0.34537367,106330.0,106320.0,0.05109282]
[1762737494719,0.4080778,106330.0,106320.0,0.05109282]
[1762737494920,0.44473031,106330.0,106320.0,0.05109282]
[1762737495299,0.8265342,106330.0,106320.0,0.05109282]
[1762737495619,0.44473031,106330.0,106320.0,0.05109282]
[1762737496931,0.38155595,106330.0,106320.0,0.05109282]
[1762737497135,0.38202618,106330.0,106320.0,0.05109282]
[1762737497758,0.38202618,106330.0,106320.0,0.05009282]
[1762737498151,0.38202618,106330.0,106320.0,0.24320418]
[1762737498152,0.19346228,106330.0,106320.0,0.24320418]
[1762737498324,0.19346228,106330.0,106320.0,0.56620418]
[1762737498531,0.15728,106330.0,106320.0,0.58358747]
[1762737499346,0.15728,106330.0,106320.0,0.57858747]
[1762737499583,0.15728,106330.0,106320.0,0.58058747]
[1762737500001,0.15728,106330.0,106320.0,0.60158747]
[1762737500194,0.17859727,106330.0,106320.0,0.58158747]
[1762737500842,0.10620727,106330.0,106320.0,0.58158747]
[1762737501047,0.03673,106330.0,106320.0,0.58158747]
[1762737501252,0.07239,106340.0,106330.0,0.18809367]
[1762737501426,0.07239,106340.0,106330.0,0.23800212]
[1762737501637,0.12055,106340.0,106330.0,0.23800212]
[1762737502372,0.05663052,106350.0,106340.0,0.18807598]
[1762737502373,0.03673,106350.0,106340.0,0.18807598]
[1762737502576,0.03673,106350.0,106340.0,0.23798443]
[1762737502775,0.03673,106350.0,106340.0,0.25798443]
[1762737503113,0.03673,106350.0,106340.0,0.43798443]
[1762737503330,0.03673,106360.0,106350.0,0.51105829]
[1762737503587,0.03673,106360.0,106350.0,0.56096674]
[1762737503836,0.08489,106360.0,106350.0,0.56096674]
[1762737503989,0.35990561,106360.0,106350.0,0.323]
[1762737504176,0.171865,106360.0,106350.0,0.51105829]
[1762737504376,0.19133475,106360.0,106350.0,0.51105829]
[1762737504574,0.37937536,106360.0,106350.0,0.51105829]
[1762737504773,0.39608789,106360.0,106350.0,0.323]
[1762737505218,0.18805829,106350.0,106340.0,0.24398443]
[1762737505391,0.36702291,106350.0,106340.0,0.56698443]
[1762737505591,0.17896462,106350.0,106340.0,0.56698443]
[1762737505797,0.30860829,106350.0,106340.0,0.37290845]
[1762737506276,0.18807598,106340.0,106330.0,0.04990845]
[1762737506522,0.30862598,106340.0,106330.0,0.04990845]
[1762737507272,0.30862598,106340.0,106330.0,0.23800212]
[1762737507687,0.30862598,106340.0,106330.0,0.24600212]
[1762737508101,0.12055,106340.0,106330.0,0.24600212]
[1762737508322,0.12055,106340.0,106330.0,0.19609367]
[1762737508907,0.12055,106340.0,106330.0,0.19309367]
[1762737509313,0.11921,106340.0,106330.0,0.58442511]
[1762737509509,0.11921,106340.0,106330.0,0.57942511]
[1762737509725,0.11921,106340.0,106330.0,0.58342511]
[1762737510513,0.04816,106340.0,106330.0,0.58342511]
[1762737510711,0.11921,106340.0,106330.0,0.58342511]
[1762737511326,0.14993694,106340.0,106330.0,0.58342511]
[1762737512283,0.11921,106340.0,106330.0,0.58342511]
[1762737512444,0.27600817,106360.0,106350.0,0.18805829]
[1762737512644,0.18805829,106350.0,106340.0,0.23806747]
[1762737512849,0.25435468,106350.0,106340.0,0.05000748]
[1762737513051,0.36000457,106350.0,106340.0,0.23808346]
[1762737513849,0.17194628,106350.0,106340.0,0.24108346]
[1762737514054,0.17194628,106350.0,106340.0,0.24408346]
[1762737514255,0.11891,106350.0,106340.0,0.24408346]
[1762737514491,0.04786,106350.0,106340.0,0.58340742]
[1762737514886,0.11891,106350.0,106340.0,0.58340742]
[1762737515070,0.11891,106350.0,106340.0,0.58040742]
[1762737515497,0.11891,106350.0,106340.0,0.58240742]
[1762737515671,0.15327856,106350.0,106340.0,0.58240742]
[1762737515858,0.34133685,106350.0,106340.0,0.51607598]
[1762737516298,0.34133685,106350.0,106340.0,0.51107598]
[1762737516454,0.34133685,106350.0,106340.0,0.51507598]
[1762737516659,0.34133685,106350.0,106340.0,0.38402694]
[1762737517063,0.34133685,106350.0,106340.0,0.37702694]
[1762737517380,0.34133685,106350.0,106340.0,0.37302694]
[1762737517586,0.34133685,106350.0,106340.0,0.38002694]
[1762737518571,0.37751913,106350.0,106340.0,0.05702694]
[1762737518901,0.37798927,106350.0,106340.0,0.24810292]
[1762737519029,0.37751913,106350.0,106340.0,0.24810292]
[1762737519437,0.37751913,106350.0,106340.0,0.23810292]
[1762737519638,0.37751913,106350.0,106340.0,0.24110292]
[1762737520252,0.37751913,106350.0,106340.0,0.05302694]
[1762737520601,0.37798927,106350.0,106340.0,0.05302694]
[1762737521718,0.37798927,106350.0,106340.0,0.08640533]
[1762737522301,0.37798927,106350.0,106340.0,0.05302694]
[1762737522865,0.37798927,106350.0,106340.0,0.24110292]
[1762737523071,0.37751913,106350.0,106340.0,0.24110292]
[1762737523472,0.37751913,106350.0,106340.0,0.05302694]
[1762737523687,0.37798927,106350.0,106340.0,0.24110292]
[1762737523959,0.37751913,106350.0,106340.0,0.24110292]
[1762737524458,0.15509228,106350.0,106340.0,0.24110292]
[1762737525144,0.15509228,106350.0,106340.0,0.19107598]
[1762737525572,0.11891,106350.0,106340.0,0.19107598]
[1762737526098,0.11891,106350.0,106340.0,1.09420419]
[1762737526348,0.11891,106350.0,106340.0,0.58040742]
[1762737526568,0.3710115,106350.0,106340.0,0.06933144]
[1762737526786,0.34750422,106350.0,106340.0,0.06933144]
[1762737527222,0.34750422,106350.0,106340.0,0.25740742]
[1762737527638,0.34750422,106350.0,106340.0,0.06933144]
[1762737527852,0.34750422,106350.0,106340.0,0.25740742]
[1762737528060,0.34750422,106350.0,106340.0,0.06933144]
[1762737528705,0.3836865,106350.0,106340.0,0.06933144]
[1762737528909,0.3836865,106350.0,106340.0,0.19107598]
[1762737529067,0.3836865,106350.0,106340.0,0.25740742]
[1762737529266,0.3836865,106350.0,106340.0,0.003]
[1762737529666,0.3836865,106350.0,106340.0,0.19107598]
[1762737530097,0.3836865,106350.0,106340.0,0.25740742]
[1762737530299,0.3836865,106350.0,106340.0,0.003]
[1762737531302,0.1132,106350.0,106340.0,0.70487275]
[1762737531505,0.1132,106350.0,106340.0,0.58040742]
[1762737532385,0.1132,106350.0,106340.0,1.02487275]
[1762737532591,0.1132,106350.0,106340.0,1.03187275]
[1762737532785,0.04692,106350.0,106340.0,1.11700725]
[1762737532985,0.04692,106350.0,106340.0,1.13700725]
[1762737533185,0.04692,106350.0,106340.0,1.13000725]
[1762737533443,0.1132,106350.0,106340.0,1.11500725]
[1762737533727,0.1132,106350.0,106340.0,1.09873631]
[1762737533947,0.14699711,106350.0,106340.0,1.09873631]
[1762737534146,0.1132,106350.0,106340.0,1.09673631]
[1762737534323,0.1132,106350.0,106340.0,0.58393954]
[1762737534650,0.32476557,106350.0,106340.0,0.58393954]
[1762737534958,0.33744057,106350.0,106340.0,0.07286356]
[1762737535203,0.40029978,106350.0,106340.0,0.006]
[1762737535408,0.40029978,106350.0,106340.0,0.05616952]
[1762737536533,0.40029978,106350.0,106340.0,0.08962032]
[1762737536733,0.39982964,106350.0,106340.0,0.08462032]
[1762737536978,0.40029978,106350.0,106340.0,0.08462032]
[1762737537318,0.22427595,106330.0,106320.0,0.06700823]
[1762737537450,0.39369129,106330.0,106320.0,0.06700823]
[1762737537654,0.45997129,106330.0,106320.0,0.06700823]
[1762737537875,0.45997129,106330.0,106320.0,0.00014467]
[1762737538224,0.46044152,106330.0,106320.0,0.00014467]
[1762737538424,0.46144152,106330.0,106320.0,0.00014467]
[1762737538641,0.12956,106330.0,106320.0,0.18825603]
[1762737538822,0.31665367,106330.0,106320.0,0.25511959]
[1762737539033,0.13056,106330.0,106320.0,0.25511959]
[1762737539324,0.14633666,106330.0,106320.0,0.25611959]
[1762737539520,0.1540717,106330.0,106320.0,0.25611959]
[1762737539724,0.19445442,106330.0,106320.0,0.25611959]
[1762737540284,0.38254809,106330.0,106320.0,0.06800823]
[1762737540493,0.35903639,106330.0,106320.0,0.06800823]
[1762737540917,0.3956889,106330.0,106320.0,0.00114467]
[1762737541312,0.3956889,106330.0,106320.0,0.18925603]
[1762737541487,0.39521867,106330.0,106320.0,0.00114467]
[1762737541649,0.3956889,106330.0,106320.0,0.00114467]
[1762737542242,0.18814675,106300.0,106290.0,0.22580316]
[1762737542444,0.26343129,106300.0,106290.0,0.52057168]
[1762737542674,0.33271129,106300.0,106290.0,0.323]
[1762737542877,0.18816445,106290.0,106280.0,0.21636596]
[1762737543077,0.347425,106290.0,106280.0,0.18813238]
[1762737543306,0.13574,106290.0,106280.0,0.18813238]
[1762737543491,0.347425,106290.0,106280.0,0.51113238]
[1762737543698,0.34772486,106290.0,106280.0,0.51113238]
[1762737543903,0.32390445,106290.0,106280.0,0.51113238]
[1762737544278,0.32490445,106290.0,106280.0,0.51113238]
[1762737544627,0.32490445,106290.0,106280.0,0.51118216]
[1762737544925,0.32490445,106290.0,106280.0,0.323]
[1762737545164,0.32490445,106290.0,106270.0,0.19753071]
[1762737545165,0.18818216,106280.0,106270.0,0.19753071]
[1762737545401,0.18819986,106270.0,106250.0,0.70215165]
[1762737545584,0.12665929,106270.0,106260.0,0.18821757]
[1762737545822,0.28139463,106290.0,106270.0,0.16819986]
[1762737545823,0.28684493,106280.0,106270.0,0.16819986]
[1762737546021,0.21992216,106280.0,106270.0,0.49119986]
[1762737546134,0.07514,106280.0,106270.0,0.49619986]
[1762737546345,0.14442,106280.0,106270.0,1.00999663]
[1762737546752,0.07514,106280.0,106270.0,1.01199663]
[1762737546959,0.03174,106280.0,106270.0,1.03584663]
[1762737547165,0.02306,106290.0,106280.0,0.51118216]
[1762737547367,0.09234,106290.0,106280.0,1.02497893]
[1762737547642,0.13574,106290.0,106280.0,1.02497893]
[1762737548607,0.13574,106290.0,106280.0,1.02797893]
[1762737549719,0.16439639,106290.0,106280.0,1.02797893]
[1762737549835,0.13574,106290.0,106280.0,1.02797893]
[1762737550648,0.13574,106290.0,106280.0,0.51418216]
[1762737551015,0.13574,106290.0,106280.0,1.02797893]
[1762737551222,0.06646,106290.0,106280.0,1.04797893]
[1762737551426,0.06646,106290.0,106280.0,1.20179767]
[1762737551634,0.13574,106290.0,106280.0,1.18179767]
[1762737551999,0.06646,106290.0,106280.0,1.18179767]
[1762737552195,0.06646,106290.0,106280.0,1.20179767]
[1762737552399,0.06646,106290.0,106280.0,1.21003125]
[1762737552609,0.06646,106290.0,106280.0,1.23003125]
[1762737553025,0.06646,106290.0,106280.0,1.21003125]
[1762737553558,0.06646,106290.0,106280.0,1.23003125]
[1762737554264,0.06646,106290.0,106280.0,1.21003125]
[1762737554408,0.13574,106290.0,106280.0,1.23003125]
[1762737554613,0.13574,106290.0,106280.0,1.21003125]
[1762737556186,0.13574,106290.0,106280.0,1.02797893]
[1762737556702,0.06646,106290.0,106280.0,1.02797893]
[1762737557103,0.02306,106290.0,106280.0,1.02797893]
[1762737557302,0.10116454,106300.0,106290.0,0.18816445]
[1762737557441,0.03188454,106300.0,106290.0,1.08029122]
[1762737557649,0.00014454,106300.0,106290.0,1.68355171]
[1762737557991,0.00014454,106300.0,106290.0,1.79779072]
[1762737558182,0.00014454,106300.0,106290.0,1.89067072]
[1762737558368,0.00014454,106300.0,106290.0,1.92773887]
[1762737558970,0.00014454,106300.0,106290.0,1.79605183]
[1762737559153,0.00014454,106300.0,106290.0,1.77605183]
[1762737559353,0.00014454,106300.0,106290.0,1.79605183]
[1762737559880,0.00014454,106300.0,106290.0,1.71404183]
[1762737560079,0.00014454,106300.0,106290.0,1.73404183]
[1762737560312,0.00014454,106300.0,106290.0,1.71404183]
[1762737560542,0.00014454,106300.0,106290.0,1.71604183]
[1762737560709,0.00014454,106300.0,106290.0,1.73604183]
[1762737560928,0.00014454,106300.0,106290.0,1.73404183]
[1762737561589,0.00014454,106300.0,106290.0,1.74204183]
[1762737561791,0.00014454,106300.0,106290.0,1.65517827]
[1762737562177,0.00014454,106300.0,106290.0,1.54229827]
[1762737562378,0.11282454,106300.0,106290.0,1.19984827]
[1762737562628,0.12728099,106300.0,106290.0,1.04638319]
[1762737562841,0.11282454,106300.0,106290.0,1.01815418]
[1762737563140,0.11282454,106300.0,106290.0,1.03815418]
[1762737563347,0.11282454,106300.0,106290.0,1.01015418]
[1762737563697,0.11282454,106300.0,106290.0,1.03615418]
[1762737563941,0.11282454,106300.0,106290.0,1.03215418]
[1762737564135,0.11282454,106300.0,106290.0,1.03515418]
[1762737564299,0.11282454,106300.0,106290.0,1.01515418]
[1762737564502,0.11282454,106300.0,106290.0,1.03515418]
[1762737565135,0.11282454,106300.0,106290.0,1.01515418]
[1762737565447,0.11282454,106300.0,106290.0,1.21515418]
[1762737565663,0.04354454,106300.0,106290.0,1.24841418]
[1762737566173,0.00014454,106300.0,106290.0,1.55111365]
[1762737566373,0.00014454,106300.0,106290.0,1.48900365]
[1762737566552,0.11282454,106300.0,106290.0,1.38681009]
[1762737566852,0.11282454,106300.0,106290.0,1.25393009]
[1762737567050,0.11282454,106300.0,106290.0,1.27393009]
[1762737567356,0.11282454,106300.0,106290.0,1.34079365]
[1762737568138,0.11282454,106300.0,106290.0,1.28215862]
[1762737568315,0.11282454,106300.0,106290.0,1.30215862]
[1762737568521,0.11282454,106300.0,106290.0,1.34902218]
[1762737568722,0.11282454,106300.0,106290.0,1.30215862]
[1762737569253,0.11282454,106300.0,106290.0,1.28215862]
[1762737569582,0.11282454,106300.0,106290.0,1.34079365]
[1762737569704,0.11282454,106300.0,106290.0,1.32079365]
[1762737570276,0.11282454,106300.0,106290.0,1.34079365]
[1762737570634,0.00014454,106300.0,106290.0,1.37219365]
[1762737570835,1.05e-06,106300.0,106290.0,1.45430365]
[1762737571038,1.05e-06,106300.0,106290.0,1.07219392]
[1762737571247,1.05e-06,106300.0,106290.0,1.45430365]
[1762737572154,0.04104105,106300.0,106290.0,1.33016365]
[1762737572354,0.04104105,106300.0,106290.0,1.35016365]
[1762737572948,0.04104105,106300.0,106290.0,1.33016365]
[1762737573155,0.10384105,106300.0,106290.0,1.12079365]
[1762737573376,0.10384105,106300.0,106290.0,1.14079365]
[1762737573871,1.05e-06,106300.0,106290.0,1.35016365]
[1762737574570,0.04104105,106300.0,106290.0,0.96805392]
[1762737574776,0.04104105,106300.0,106290.0,1.35016365]
[1762737574976,1.05e-06,106300.0,106290.0,1.37219365]
[1762737575281,1.05e-06,106300.0,106290.0,1.53434009]
[1762737576586,1.05e-06,106300.0,106290.0,1.61747459]
[1762737577421,1.05e-06,106300.0,106290.0,1.68771026]
[1762737577803,1.05e-06,106300.0,106290.0,3.72389254]
[1762737578010,0.01536,106330.0,106320.0,0.91111136]
[1762737578202,0.01536,106330.0,106320.0,1.36330989]
[1762737578526,0.0564,106330.0,106320.0,1.34330989]
[1762737578908,0.0564,106330.0,106320.0,1.36330989]
[1762737579494,0.0564,106330.0,106320.0,1.36630989]
[1762737579690,0.0564,106330.0,106320.0,1.49796969]
[1762737579895,0.0564,106330.0,106320.0,1.51796969]
[1762737580093,0.0564,106330.0,106320.0,1.54619171]
[1762737580297,0.0564,106330.0,106320.0,1.37453191]
[1762737580551,0.0564,106330.0,106320.0,1.54619171]
[1762737580763,0.0564,106330.0,106320.0,1.52619171]
[1762737580963,0.0564,106330.0,106320.0,1.54619171]
[1762737581293,0.0564,106330.0,106320.0,1.54319171]
[1762737581511,0.0564,106330.0,106320.0,1.54419171]
[1762737582026,0.0564,106330.0,106320.0,1.49810291]
[1762737582222,0.0628,106340.0,106330.0,0.18809367]
[1762737582223,0.03245,106340.0,106330.0,0.18809367]
[1762737582423,0.13643467,106340.0,106330.0,0.62028244]
[1762737582631,0.15634515,106340.0,106330.0,0.18809367]
[1762737582865,0.34442113,106340.0,106330.0,0.18809367]
[1762737583448,0.34442113,106340.0,106330.0,0.19109367]
[1762737583657,0.34442113,106340.0,106330.0,0.003]
[1762737583875,0.39866035,106340.0,106330.0,0.003]
[1762737584102,0.39866035,106340.0,106330.0,0.19109367]
[1762737584103,0.4598685,106340.0,106330.0,0.19109367]
[1762737584314,0.36200789,106340.0,106330.0,0.19109367]
[1762737584527,0.34542113,106340.0,106330.0,0.19109367]
[1762737584763,0.34542113,106340.0,106330.0,0.18809367]
[1762737584764,0.34442113,106340.0,106330.0,0.18809367]
[1762737584974,0.18809367,106330.0,106320.0,0.51111121]
[1762737585188,0.37038214,106330.0,106320.0,0.51111136]
[1762737585444,0.34694406,106330.0,106320.0,0.51111136]
[1762737585651,0.34694406,106330.0,106320.0,0.18811136]
[1762737586214,0.34794406,106330.0,106320.0,0.19111136]
[1762737587314,0.34794406,106330.0,106320.0,0.2411904]
[1762737588552,0.34794406,106330.0,106320.0,0.05307904]
[1762737588721,0.34841429,106330.0,106320.0,0.2411904]
[1762737588945,0.34794406,106330.0,106320.0,0.2411904]
[1762737589396,0.34794406,106330.0,106320.0,0.003]
[1762737589529,0.34841429,106330.0,106320.0,0.003]
[1762737590770,0.16032062,106330.0,106320.0,0.19111136]
[1762737590969,0.34794406,106330.0,106320.0,0.19111136]
[1762737591156,0.29293367,106330.0,106320.0,0.19111136]
[1762737591350,0.10484,106330.0,106320.0,0.19111136]
[1762737591556,0.29293367,106330.0,106320.0,0.19111136]
[1762737591758,0.29293367,106330.0,106320.0,0.003]